fUST/lending_fUST_20240425
["ID","MTS","AMOUNT","RATE_DAILY","PERIOD"]
[323430994,1713984657026,-836.713018,0.00016642,2]
[323430995,1713984657036,-929.654291,0.00016642,2]
[323430996,1713984657046,-836.713018,0.00016642,2]
[323430997,1713984657057,-929.654291,0.00016642,2]
[323430998,1713984657068,-1673.426035,0.00016642,2]
[323430999,1713984657078,-1859.308583,0.00016642,2]
[323431000,1713984657088,-929.654291,0.00016642,2]
[323431001,1713984657099,-836.713018,0.00016642,2]
[323431002,1713984657110,-500.0,0.00016712,2]
[323431003,1713984657120,-500.0,0.00016712,2]
[323431004,1713984657131,-151.0,0.00016712,2]
[323431005,1713984657158,-500.0,0.00016712,2]
[323431006,1713984657170,-500.0,0.00016712,2]
[323431007,1713984657181,-500.0,0.00016712,2]
[323431008,1713984657192,-542.04782478,0.00016712,2]
[323431009,1713984657203,-500.0,0.00016712,2]
[323431010,1713984657214,-390.54748868,0.00016712,2]
[323431011,1713984657226,-500.0,0.00016712,2]
[323431012,1713984657238,-500.0,0.00016712,2]
[323431013,1713984657249,-508.06925946,0.00016712,2]
[323431014,1713984657260,-500.0,0.00016712,2]
[323431015,1713984657273,-500.0,0.00016712,2]
[323431016,1713984657284,-500.0,0.00016712,2]
[323431017,1713984657295,-500.84507688,0.00016712,2]
[323431018,1713984657306,-623.31499661,0.00016712,2]
[323431019,1713984657316,-500.0,0.00016712,2]
[323431020,1713984657327,-500.0,0.00016712,2]
[323431021,1713984657338,-500.0,0.00016712,2]
[323431022,1713984657350,-500.0,0.00016712,2]
[323431023,1713984657360,-298.01548144,0.00016712,2]
[323431024,1713984657371,-500.0,0.00016712,2]
[323431025,1713984657382,-500.0,0.00016712,2]
[323431026,1713984657392,-500.0,0.00016712,2]
[323431027,1713984657403,-278.48802937,0.00016712,2]
[323431028,1713984657414,-625.0,0.00016712,2]
[323431029,1713984657425,-500.0,0.00016712,2]
[323431030,1713984657435,-603.91457885,0.00016712,2]
[323431031,1713984657447,-674.8,0.00016712,2]
[323431032,1713984657458,-502.72103971,0.00016712,2]
[323431033,1713984657469,-503.09299643,0.00016712,2]
[323431034,1713984657479,-500.83165613,0.00016712,2]
[323431035,1713984657489,-500.2727508,0.00016712,2]
[323431036,1713984657499,-500.0,0.00016712,2]
[323431037,1713984657508,-500.0,0.00016712,2]
[323431038,1713984657518,-500.0,0.00016712,2]
[323431039,1713984657527,-500.76294847,0.00016712,2]
[323431040,1713984657537,-500.0,0.00016712,2]
[323431041,1713984657546,-500.0,0.00016712,2]
[323431042,1713984657556,-500.0,0.00016712,2]
[323431043,1713984657566,-500.0,0.00016712,2]
[323431044,1713984657576,-585.29,0.00016712,2]
[323431045,1713984657586,-716.83,0.00016712,2]
[323431046,1713984657596,-249.53106033,0.00016712,2]
[323431047,1713984657606,-500.0,0.00016712,2]
[323431048,1713984657616,-500.0,0.00016712,2]
[323431049,1713984657626,-500.0,0.00016712,2]
[323431050,1713984657648,-500.0,0.00016712,2]
[323431051,1713984657658,-500.0,0.00016712,2]
[323431052,1713984657668,-500.0,0.00016712,2]
[323431053,1713984657678,-500.0,0.00016712,2]
[323431054,1713984657687,-500.0,0.00016712,2]
[323431055,1713984657697,-500.0,0.00016712,2]
[323431056,1713984657706,-500.0,0.00016712,2]
[323431057,1713984657716,-500.0,0.00016712,2]
[323431058,1713984657726,-500.0,0.00016712,2]
[323431059,1713984657736,-560.98,0.00016712,2]
[323431060,1713984657745,-500.0,0.00016712,2]
[323431061,1713984657755,-500.0,0.00016712,2]
[323431062,1713984657764,-500.0,0.00016712,2]
[323431063,1713984657773,-500.0,0.00016712,2]
[323431064,1713984657783,-500.0,0.00016712,2]
[323431065,1713984657793,-722.43,0.00016712,2]
[323431066,1713984657802,-500.0,0.00016712,2]
[323431067,1713984657811,-500.0,0.00016712,2]
[323431068,1713984657820,-839.18,0.00016712,2]
[323431069,1713984657830,-500.0,0.00016712,2]
[323431070,1713984657839,-500.0,0.00016712,2]
[323431071,1713984657848,-500.53434744,0.00016712,2]
[323431072,1713984657857,-500.0,0.00016712,2]
[323431073,1713984657867,-507.23561629,0.00016712,2]
[323431074,1713984657876,-500.0,0.00016712,2]
[323431075,1713984657893,-500.0,0.00016712,2]
[323431076,1713984657902,-500.0,0.00016712,2]
[323431077,1713984657911,-500.0,0.00016712,2]
[323431078,1713984657921,-500.0,0.00016712,2]
[323431079,1713984657931,-500.0,0.00016712,2]
[323431080,1713984657940,-500.0,0.00016712,2]
[323431081,1713984657950,-500.0,0.00016712,2]
[323431082,1713984657959,-501.49946375,0.00016712,2]
[323431083,1713984657968,-500.0,0.00016712,2]
[323431084,1713984657977,-500.0,0.00016712,2]
[323431085,1713984657987,-1155.53,0.00016712,2]
[323431086,1713984657996,-2033.21,0.00016712,2]
[323431087,1713984658005,-500.0,0.00016712,2]
[323431088,1713984658014,-1717.84,0.00016712,2]
[323431089,1713984658023,-507.9712587,0.00016712,2]
[323431090,1713984658032,-628.65496616,0.00016712,2]
[323431091,1713984658042,-500.0,0.00016712,2]
[323431092,1713984658051,-500.0,0.00016712,2]
[323431093,1713984658060,-1292.95,0.00016712,2]
[323431094,1713984658070,-500.0,0.00016712,2]
[323431095,1713984658079,-500.0,0.00016712,2]
[323431096,1713984658089,-500.0,0.00016712,2]
[323431097,1713984658097,-500.0,0.00016712,2]
[323431098,1713984658106,-500.0,0.00016712,2]
[323431099,1713984658115,-292.95212173,0.00016712,2]
[323431100,1713984658125,-500.0,0.00016712,2]
[323431101,1713984658139,-1786.12,0.00016712,2]
[323431102,1713984658148,-1139.75,0.00016712,2]
[323431103,1713984658158,-503.94596594,0.00016712,2]
[323431104,1713984658168,-603.4,0.00016712,2]
[323431105,1713984658177,-500.0,0.00016712,2]
[323431106,1713984658187,-978.62,0.00016712,2]
[323431107,1713984658196,-500.0,0.00016712,2]
[323431108,1713984658206,-902.13,0.00016712,2]
[323431109,1713984658215,-999.37,0.00016712,2]
[323431110,1713984658225,-789.38,0.00016712,2]
[323431111,1713984658234,-864.27,0.00016712,2]
[323431112,1713984658243,-500.0,0.00016712,2]
[323431113,1713984658252,-500.0,0.00016712,2]
[323431114,1713984658261,-500.0,0.00016712,2]
[323431115,1713984658271,-500.0,0.00016712,2]
[323431116,1713984658281,-500.0,0.00016712,2]
[323431117,1713984658290,-500.0,0.00016712,2]
[323431118,1713984658299,-500.0,0.00016712,2]
[323431119,1713984658310,-500.0,0.00016712,2]
[323431120,1713984658321,-500.0,0.00016712,2]
[323431121,1713984658331,-500.0,0.00016712,2]
[323431122,1713984658340,-500.0,0.00016712,2]
[323431123,1713984658349,-500.0,0.00016712,2]
[323431124,1713984658358,-500.0,0.00016712,2]
[323431125,1713984658369,-514.25355199,0.00016712,2]
[323431126,1713984658378,-500.0,0.00016712,2]
[323431127,1713984658395,-1005.48,0.00016712,2]
[323431128,1713984658405,-500.0,0.00016712,2]
[323431129,1713984658414,-500.29204213,0.00016712,2]
[323431130,1713984658423,-2278.55,0.00016712,2]
[323431131,1713984658433,-500.0,0.00016712,2]
[323431132,1713984658443,-500.0,0.00016712,2]
[323431133,1713984658452,-500.0,0.00016712,2]
[323431134,1713984658461,-708.42,0.00016712,2]
[323431135,1713984658471,-500.0,0.00016712,2]
[323431136,1713984658481,-500.0,0.00016712,2]
[323431137,1713984658491,-500.0,0.00016712,2]
[323431138,1713984658501,-500.0,0.00016712,2]
[323431139,1713984658511,-500.0,0.00016712,2]
[323431140,1713984658520,-500.0,0.00016712,2]
[323431141,1713984658530,-785.8,0.00016712,2]
[323431142,1713984658540,-487.27586317,0.00016712,2]
[323431143,1713984658549,-500.0,0.00016712,2]
[323431144,1713984658559,-695.13,0.00016712,2]
[323431145,1713984658568,-999.88,0.00016712,2]
[323431146,1713984658578,-500.0,0.00016712,2]
[323431147,1713984658587,-500.61663028,0.00016712,2]
[323431148,1713984658596,-500.0,0.00016712,2]
[323431149,1713984658605,-500.0,0.00016712,2]
[323431150,1713984658615,-500.0,0.00016712,2]
[323431151,1713984658624,-500.0,0.00016712,2]
[323431152,1713984658640,-500.0,0.00016712,2]
[323431153,1713984658650,-500.0,0.00016712,2]
[323431154,1713984658659,-1909.77,0.00016712,2]
[323431155,1713984658669,-500.0,0.00016712,2]
[323431156,1713984658678,-634.31,0.00016712,2]
[323431157,1713984658687,-500.0,0.00016712,2]
[323431158,1713984658697,-500.0,0.00016712,2]
[323431159,1713984658707,-500.0,0.00016712,2]
[323431160,1713984658716,-500.0,0.00016712,2]
[323431161,1713984658725,-1645.24,0.00016712,2]
[323431162,1713984658734,-500.27138375,0.00016712,2]
[323431163,1713984658743,-500.0,0.00016712,2]
[323431164,1713984658753,-500.0,0.00016712,2]
[323431165,1713984658762,-500.0,0.00016712,2]
[323431166,1713984658773,-503.10038549,0.00016712,2]
[323431167,1713984658782,-2192.71,0.00016712,2]
[323431168,1713984658791,-500.0,0.00016712,2]
[323431169,1713984658801,-500.0,0.00016712,2]
[323431170,1713984658810,-500.0,0.00016712,2]
[323431171,1713984658820,-500.0,0.00016712,2]
[323431172,1713984658828,-736.48,0.00016712,2]
[323431173,1713984658838,-500.0,0.00016712,2]
[323431174,1713984658847,-500.0,0.00016712,2]
[323431175,1713984658857,-465.15632115,0.00016712,2]
[323431176,1713984658866,-691.26,0.00016712,2]
[323431177,1713984658875,-500.0,0.00016712,2]
[323431178,1713984658892,-500.0,0.00016712,2]
[323431179,1713984658901,-500.43888082,0.00016712,2]
[323431180,1713984658910,-500.0,0.00016712,2]
[323431181,1713984658920,-500.0,0.00016712,2]
[323431182,1713984658929,-500.0,0.00016712,2]
[323431183,1713984658939,-500.0,0.00016712,2]
[323431184,1713984658948,-650.3,0.00016712,2]
[323431185,1713984659072,-1002.4,0.00016712,2]
[323431186,1713984659081,-1100.44,0.00016712,2]
[323431187,1713984659090,-500.0,0.00016712,2]
[323431188,1713984659099,-500.0,0.00016712,2]
[323431189,1713984659108,-500.0,0.00016712,2]
[323431190,1713984659117,-693.43,0.00016712,2]
[323431191,1713984659126,-537.88965798,0.00016712,2]
[323431192,1713984659142,-500.0,0.00016712,2]
[323431193,1713984659151,-534.56,0.00016712,2]
[323431194,1713984659161,-500.0,0.00016712,2]
[323431195,1713984659170,-500.0,0.00016712,2]
[323431196,1713984659179,-500.0,0.00016712,2]
[323431197,1713984659188,-500.0,0.00016712,2]
[323431198,1713984659197,-500.0,0.00016712,2]
[323431199,1713984659206,-500.0,0.00016712,2]
[323431200,1713984659216,-500.0,0.00016712,2]
[323431201,1713984659225,-500.0,0.00016712,2]
[323431202,1713984659234,-1280.96,0.00016712,2]
[323431203,1713984659243,-500.0,0.00016712,2]
[323431204,1713984659252,-515.07,0.00016712,2]
[323431205,1713984659261,-1572.17,0.00016712,2]
[323431206,1713984659271,-2597.28,0.00016712,2]
[323431207,1713984659281,-500.0,0.00016712,2]
[323431208,1713984659290,-539.11,0.00016712,2]
[323431209,1713984659300,-1730.28,0.00016712,2]
[323431210,1713984659309,-500.0,0.00016712,2]
[323431211,1713984659319,-500.0,0.00016712,2]
[323431212,1713984659328,-500.0,0.00016712,2]
[323431213,1713984659337,-553.14,0.00016712,2]
[323431214,1713984659347,-385.32213369,0.00016712,2]
[323431215,1713984659356,-505.4742734,0.00016712,2]
[323431216,1713984659365,-500.0,0.00016712,2]
[323431217,1713984659375,-500.0,0.00016712,2]
[323431218,1713984659386,-1050.14,0.00016712,2]
[323431219,1713984659397,-524.07719286,0.00016712,2]
[323431220,1713984659406,-500.0,0.00016712,2]
[323431221,1713984659415,-500.0,0.00016712,2]
[323431222,1713984659425,-500.0,0.00016712,2]
[323431223,1713984659435,-500.0,0.00016712,2]
[323431224,1713984659445,-2490.79,0.00016712,2]
[323431225,1713984659454,-939.73,0.00016712,2]
[323431226,1713984659463,-500.0,0.00016712,2]
[323431227,1713984659472,-500.0,0.00016712,2]
[323431228,1713984659482,-1217.82,0.00016712,2]
[323431229,1713984659491,-500.0,0.00016712,2]
[323431230,1713984659500,-500.0,0.00016712,2]
[323431231,1713984659510,-500.0,0.00016712,2]
[323431232,1713984659519,-500.0,0.00016712,2]
[323431233,1713984659528,-1977.88,0.00016712,2]
[323431234,1713984659537,-500.51741182,0.00016712,2]
[323431235,1713984659546,-500.0,0.00016712,2]
[323431236,1713984659555,-500.0,0.00016712,2]
[323431237,1713984659564,-979.24,0.00016712,2]
[323431238,1713984659573,-500.0,0.00016712,2]
[323431239,1713984659582,-500.0,0.00016712,2]
[323431240,1713984659592,-500.0,0.00016712,2]
[323431241,1713984659602,-500.0,0.00016712,2]
[323431242,1713984659611,-500.0,0.00016712,2]
[323431243,1713984659620,-500.0,0.00016712,2]
[323431244,1713984659630,-500.0,0.00016712,2]
[323431245,1713984659644,-571.61,0.00016712,2]
[323431246,1713984659654,-500.0,0.00016712,2]
[323431247,1713984659663,-504.04873657,0.00016712,2]
[323431248,1713984659672,-1094.17,0.00016712,2]
[323431249,1713984659681,-500.0,0.00016712,2]
[323431250,1713984659690,-573.0644351,0.00016712,2]
[323431251,1713984659699,-500.0,0.00016712,2]
[323431252,1713984659708,-500.0,0.00016712,2]
[323431253,1713984659717,-500.0,0.00016712,2]
[323431254,1713984659726,-500.0,0.00016712,2]
[323431255,1713984659736,-1357.41,0.00016712,2]
[323431256,1713984659745,-500.0,0.00016712,2]
[323431257,1713984659754,-570.41662154,0.00016712,2]
[323431258,1713984659764,-500.0,0.00016712,2]
[323431259,1713984659773,-500.0,0.00016712,2]
[323431260,1713984659783,-500.0,0.00016712,2]
[323431261,1713984659793,-1382.9,0.00016712,2]
[323431262,1713984659801,-500.0,0.00016712,2]
[323431263,1713984659811,-500.0,0.00016712,2]
[323431264,1713984659820,-1158.93,0.00016712,2]
[323431265,1713984659829,-500.0,0.00016712,2]
[323431266,1713984659838,-500.55821023,0.00016712,2]
[323431267,1713984659847,-500.0,0.00016712,2]
[323431268,1713984659858,-500.0,0.00016712,2]
[323431269,1713984659867,-500.0,0.00016712,2]
[323431270,1713984659876,-1002.6,0.00016712,2]
[323431271,1713984659889,-442.35134875,0.00016712,2]
[323431272,1713984659899,-180.45082153,0.00016712,2]
[323431273,1713984659908,-500.0,0.00016712,2]
[323431274,1713984659917,-20762.57,0.00016712,2]
[323431275,1713984659927,-1565.04,0.00016712,2]
[323431276,1713984659938,-500.0,0.00016712,2]
[323431277,1713984659947,-500.0,0.00016712,2]
[323431278,1713984659956,-1005.95,0.00016712,2]
[323431279,1713984659965,-500.0,0.00016712,2]
[323431280,1713984659974,-500.0,0.00016712,2]
[323431281,1713984659985,-505.92603908,0.00016712,2]
[323431282,1713984659994,-500.0,0.00016712,2]
[323431283,1713984660003,-500.60779908,0.00016712,2]
[323431284,1713984660012,-500.0,0.00016712,2]
[323431285,1713984660021,-500.0,0.00016712,2]
[323431286,1713984660030,-500.0,0.00016712,2]
[323431287,1713984660040,-500.0,0.00016712,2]
[323431288,1713984660049,-19373.57,0.00016712,2]
[323431289,1713984660059,-908.92,0.00016712,2]
[323431290,1713984660069,-1126.69,0.00016712,2]
[323431291,1713984660078,-1323.24,0.00016712,2]
[323431292,1713984660087,-535.0666244,0.00016712,2]
[323431293,1713984660096,-2676.08,0.00016712,2]
[323431294,1713984660106,-500.0,0.00016712,2]
[323431295,1713984660115,-500.0,0.00016712,2]
[323431296,1713984660124,-500.0,0.00016712,2]
[323431297,1713984660135,-541.01,0.00016712,2]
[323431298,1713984660144,-512.50548145,0.00016712,2]
[323431299,1713984660153,-637.03,0.00016712,2]
[323431300,1713984660163,-4954.95,0.00016712,2]
[323431301,1713984660172,-500.0,0.00016712,2]
[323431302,1713984660182,-500.81982307,0.00016712,2]
[323431303,1713984660192,-806.42,0.00016712,2]
[323431304,1713984660202,-500.0,0.00016712,2]
[323431305,1713984660212,-500.0,0.00016712,2]
[323431306,1713984660222,-500.0,0.00016712,2]
[323431307,1713984660231,-12995.55,0.00016712,2]
[323431308,1713984660241,-500.0,0.00016712,2]
[323431309,1713984660250,-2682.8,0.00016712,2]
[323431310,1713984660259,-500.0,0.00016712,2]
[323431311,1713984660269,-500.0,0.00016712,2]
[323431313,1713984660280,-1763.41,0.00016712,2]
[323431314,1713984660290,-7231.97,0.00016712,2]
[323431315,1713984660300,-500.0,0.00016712,2]
[323431316,1713984660310,-500.0,0.00016712,2]
[323431317,1713984660319,-500.0,0.00016712,2]
[323431318,1713984660329,-500.0,0.00016712,2]
[323431319,1713984660338,-500.0,0.00016712,2]
[323431320,1713984660348,-500.0,0.00016712,2]
[323431321,1713984660357,-1109.8,0.00016712,2]
[323431322,1713984660366,-500.0,0.00016712,2]
[323431323,1713984660376,-703.53,0.00016712,2]
[323431324,1713984660389,-511.86566935,0.00016712,2]
[323431325,1713984660398,-1396.91,0.00016712,2]
[323431326,1713984660407,-500.0,0.00016712,2]
[323431327,1713984660417,-500.0,0.00016712,2]
[323431328,1713984660427,-7041.65,0.00016712,2]
[323431329,1713984660436,-1419.45,0.00016712,2]
[323431330,1713984660445,-500.0,0.00016712,2]
[323431331,1713984660455,-8055.98,0.00016712,2]
[323431332,1713984660464,-10090.6,0.00016712,2]
[323431333,1713984660474,-500.0,0.00016712,2]
[323431334,1713984660483,-500.0,0.00016712,2]
[323431335,1713984660492,-500.0,0.00016712,2]
[323431336,1713984660502,-500.0,0.00016712,2]
[323431337,1713984660511,-504.1721334,0.00016712,2]
[323431338,1713984660520,-522.15,0.00016712,2]
[323431339,1713984660529,-500.0,0.00016712,2]
[323431340,1713984660539,-500.0,0.00016712,2]
[323431341,1713984660548,-500.0,0.00016712,2]
[323431342,1713984660558,-500.0,0.00016712,2]
[323431343,1713984660568,-500.0,0.00016712,2]
[323431344,1713984660578,-500.0,0.00016712,2]
[323431345,1713984660587,-707.89,0.00016712,2]
[323431346,1713984660597,-500.0,0.00016712,2]
[323431347,1713984660606,-500.0,0.00016712,2]
[323431348,1713984660616,-425.32897893,0.00016712,2]
[323431349,1713984660625,-500.0,0.00016712,2]
[323431350,1713984660637,-2261.27,0.00016712,2]
[323431351,1713984660647,-500.0,0.00016712,2]
[323431352,1713984660656,-500.0,0.00016712,2]
[323431353,1713984660666,-500.0,0.00016712,2]
[323431354,1713984660675,-6891.8,0.00016712,2]
[323431355,1713984660685,-3678.5,0.00016712,2]
[323431356,1713984660695,-1234.39,0.00016712,2]
[323431357,1713984660704,-1371.63,0.00016712,2]
[323431358,1713984660713,-500.0,0.00016712,2]
[323431359,1713984660723,-500.0,0.00016712,2]
[323431360,1713984660733,-588.62107342,0.00016712,2]
[323431361,1713984660742,-500.0,0.00016712,2]
[323431362,1713984660752,-262.2526626,0.00016712,2]
[323431363,1713984660762,-704.21,0.00016712,2]
[323431364,1713984660771,-256.74745288,0.00016712,2]
[323431365,1713984660780,-500.0,0.00016712,2]
[323431366,1713984660789,-925.33,0.00016712,2]
[323431367,1713984660798,-500.0,0.00016712,2]
[323431368,1713984660807,-500.0,0.00016712,2]
[323431369,1713984660817,-911.08,0.00016712,2]
[323431370,1713984660826,-500.0,0.00016712,2]
[323431371,1713984660835,-741.31,0.00016712,2]
[323431372,1713984660844,-500.0,0.00016712,2]
[323431373,1713984660853,-500.0,0.00016712,2]
[323431374,1713984660863,-3135.11,0.00016712,2]
[323431375,1713984660873,-500.0,0.00016712,2]
[323431376,1713984660884,-359.86750846,0.00016712,2]
[323431377,1713984660894,-500.0,0.00016712,2]
[323431378,1713984660903,-500.0,0.00016712,2]
[323431379,1713984660912,-2399.0,0.00016712,2]
[323431380,1713984660921,-500.0,0.00016712,2]
[323431381,1713984660931,-500.0,0.00016712,2]
[323431382,1713984660940,-500.0,0.00016712,2]
[323431383,1713984660949,-517.12522011,0.00016712,2]
[323431384,1713984660958,-872.83,0.00016712,2]
[323431385,1713984660967,-500.0,0.00016712,2]
[323431386,1713984660977,-500.0,0.00016712,2]
[323431387,1713984660986,-500.0,0.00016712,2]
[323431388,1713984660995,-500.0,0.00016712,2]
[323431389,1713984661004,-3286.45,0.00016712,2]
[323431390,1713984661013,-500.0,0.00016712,2]
[323431391,1713984661023,-500.0,0.00016712,2]
[323431392,1713984661032,-612.33,0.00016712,2]
[323431393,1713984661041,-542.67199493,0.00016712,2]
[323431394,1713984661050,-500.0,0.00016712,2]
[323431395,1713984661059,-8567.18,0.00016712,2]
[323431396,1713984661069,-500.0,0.00016712,2]
[323431397,1713984661078,-500.0,0.00016712,2]
[323431398,1713984661088,-1176.79,0.00016712,2]
[323431399,1713984661097,-500.0,0.00016712,2]
[323431400,1713984661107,-525.79565158,0.00016712,2]
[323431401,1713984661116,-500.0,0.00016712,2]
[323431402,1713984661125,-500.0,0.00016712,2]
[323431403,1713984661136,-500.0,0.00016712,2]
[323431404,1713984661145,-984.91,0.00016712,2]
[323431405,1713984661155,-151.0,0.00016712,2]
[323431406,1713984661163,-500.0,0.00016712,2]
[323431407,1713984661172,-461.14874581,0.00016712,2]
[323431408,1713984661182,-500.0,0.00016712,2]
[323431409,1713984661191,-500.0,0.00016712,2]
[323431410,1713984661201,-1391.58,0.00016712,2]
[323431411,1713984661210,-500.0,0.00016712,2]
[323431412,1713984661219,-500.0,0.00016712,2]
[323431413,1713984661228,-500.0,0.00016712,2]
[323431414,1713984661237,-500.0,0.00016712,2]
[323431415,1713984661246,-513.27044308,0.00016712,2]
[323431416,1713984661255,-500.0,0.00016712,2]
[323431417,1713984661263,-1326.81,0.00016712,2]
[323431418,1713984661273,-500.0,0.00016712,2]
[323431419,1713984661285,-493.77022189,0.00016712,2]
[323431420,1713984661295,-500.0,0.00016712,2]
[323431421,1713984661307,-604.22,0.00016712,2]
[323431422,1713984661426,-613.12,0.00016712,2]
[323431423,1713984661437,-500.0,0.00016712,2]
[323431424,1713984661447,-500.0,0.00016712,2]
[323431425,1713984661456,-2262.73,0.00016712,2]
[323431426,1713984661465,-500.0,0.00016712,2]
[323431427,1713984661474,-500.0,0.00016712,2]
[323431428,1713984661484,-692.01,0.00016712,2]
[323431429,1713984661494,-1674.86,0.00016712,2]
[323431430,1713984661503,-500.0,0.00016712,2]
[323431431,1713984661512,-500.0,0.00016712,2]
[323431432,1713984661521,-500.0,0.00016712,2]
[323431433,1713984661531,-623.72,0.00016712,2]
[323431434,1713984661540,-500.0,0.00016712,2]
[323431435,1713984661549,-500.0,0.00016712,2]
[323431436,1713984661558,-623.43,0.00016712,2]
[323431437,1713984661568,-528.47521624,0.00016712,2]
[323431438,1713984661577,-500.0,0.00016712,2]
[323431439,1713984661586,-836.713018,0.00016845,2]
[323431440,1713984661595,-929.654291,0.00016845,2]
[323431441,1713984661605,-836.713018,0.00016845,2]
[323431442,1713984661614,-929.654291,0.00016845,2]
[323431443,1713984661624,-1673.426035,0.00016845,2]
[323431444,1713984661636,-1859.308583,0.00016845,2]
[323431445,1713984661645,-929.654291,0.00016845,2]
[323431446,1713984661655,-836.713018,0.00016845,2]
[323431447,1713984661664,-150.0,0.00016928,2]
[323431448,1713984661673,-500.0,0.00016986,2]
[323431449,1713984661683,-500.0,0.00016986,2]
[323431450,1713984661692,-157.8930494,0.00016986,2]
[323431451,1713984661702,-500.0,0.00016986,2]
[323431452,1713984661711,-507.00162676,0.00016986,2]
[323431453,1713984661721,-500.0,0.00016986,2]
[323431454,1713984661730,-500.0,0.00016986,2]
[323431455,1713984661739,-500.0,0.00016986,2]
[323431456,1713984661748,-500.0,0.00016986,2]
[323431457,1713984661757,-500.0,0.00016986,2]
[323431458,1713984661767,-389.75683053,0.00016986,2]
[323431459,1713984661776,-500.0,0.00016986,2]
[323431460,1713984661786,-500.0,0.00016986,2]
[323431461,1713984661796,-500.0,0.00016986,2]
[323431462,1713984661806,-502.2687264,0.00016986,2]
[323431463,1713984661815,-500.0,0.00016986,2]
[323431464,1713984661823,-500.0,0.00016986,2]
[323431465,1713984661833,-500.0,0.00016986,2]
[323431466,1713984661842,-625.0,0.00016986,2]
[323431467,1713984661851,-500.0,0.00016986,2]
[323431468,1713984661860,-674.8,0.00016986,2]
[323431469,1713984661869,-500.0,0.00016986,2]
[323431470,1713984661879,-500.0,0.00016986,2]
[323431471,1713984661893,-500.0,0.00016986,2]
[323431472,1713984661903,-500.0,0.00016986,2]
[323431473,1713984661912,-500.0,0.00016986,2]
[323431474,1713984661922,-500.0,0.00016986,2]
[323431475,1713984661931,-500.0,0.00016986,2]
[323431476,1713984661942,-585.29,0.00016986,2]
[323431477,1713984661951,-716.83,0.00016986,2]
[323431478,1713984661960,-500.0,0.00016986,2]
[323431479,1713984661970,-500.0,0.00016986,2]
[323431480,1713984661979,-500.0,0.00016986,2]
[323431481,1713984661989,-500.0,0.00016986,2]
[323431482,1713984661999,-500.0,0.00016986,2]
[323431483,1713984662008,-500.0,0.00016986,2]
[323431484,1713984662017,-500.0,0.00016986,2]
[323431485,1713984662026,-500.0,0.00016986,2]
[323431486,1713984662036,-500.0,0.00016986,2]
[323431487,1713984662045,-500.0,0.00016986,2]
[323431488,1713984662054,-500.0,0.00016986,2]
[323431489,1713984662063,-500.0,0.00016986,2]
[323431490,1713984662074,-560.98,0.00016986,2]
[323431491,1713984662085,-500.0,0.00016986,2]
[323431492,1713984662094,-500.0,0.00016986,2]
[323431493,1713984662103,-500.0,0.00016986,2]
[323431494,1713984662113,-343.59439923,0.00016986,2]